[Event "POL-chT 2nd League Juniors 2020"]
[Site "Sypniewo"]
[Date "2020.10.29"]
[Round "8.2"]
[White "Bialik, Nikodem"]
[Black "Szuber, Dawid"]
[Result "1/2-1/2"]
[ECO "B30"]
[WhiteElo "1547"]
[BlackElo "1496"]
[Annotator "NA RC"]
[PlyCount "168"]
[EventDate "2020.10.23"]
[EventType "team-tourn"]
[EventCountry "POL"]
[SourceTitle "playchess.com"]
[Source "ChessBase"]
[SourceQuality "1"]
[TimeControl "5400+30"]

1. e4 {[%emt 0:00:00]} c5 {[%emt 0:00:00]} 2. Nf3 {[%emt 0:00:00]} Nc6 {[%emt 0:01:15]} 3. Bb5 {[%emt 0:00:38]} e6 {[%emt 0:01:50]} 4. O-O {[%emt 0:02:05]} a6 {[%emt 0:01:44]} 5. Bxc6 {[%emt 0:00:42]} bxc6 {[%emt 0:00:06]} 6. e5 {[%emt 0:01:13]} d5 {[%emt 0:00:54]} 7. exd6 {[%emt 0:01:23]} Bxd6 {[%emt 0:00:07]} 8. Nc3 {[%emt 0:01:40]} Nf6 {[%emt 0:01:08]} 9. b3 {[%emt 0:00:42]} O-O {[%emt 0:01:34]} 10. Re1 {[%emt 0:01:12]} Qc7 {[%emt 0:01:27]} 11. d3 {[%emt 0:02:57]} h6 12. Na4 e5 {[%emt 0:06:01]} 13. h3 {[%emt 0:03:22]} Be6 {[%emt 0:02:35]} 14. Ba3 {[%emt 0:01:18]} Nd7 {[%emt 0:03:02]} 15. Qd2 {[%emt 0:05:36]} Rab8 {[%emt 0:02:45]} 16. Qe3 {[%emt 0:01:20]} Qa5 {[%emt 0:01:56]} 17. Nd2 {[%emt 0:01:13]} f5 {[%emt 0:04:21]} 18. Nf3 {[%emt 0:07:14]} Bd5 {[%emt 0:10:11]} 19. Bb2 {[%emt 0:06:13]} Rbe8 {[%emt 0:07:04]} 20. Rad1 {[%emt 0:09:09]} Qc7 {[%emt 0:02:44]} 21. c4 {[%emt 0:02:54]} Bf7 {[%emt 0:04:59]} 22. Nd2 {[%emt 0:08:04]} Bh5 {[%emt 0:05:52]} 23. f3 {[%emt 0:03:41]} Bg6 {[%emt 0:07:26]} 24. Ba3 {[%emt 0:06:47]} Qa5 {[%emt 0:04:18]} 25. Qf2 {[%emt 0:04:05]} Kh7 {[%emt 0:09:40]} 26. Re2 {[%emt 0:04:28]} Bf7 {[%emt 0:03:24]} 27. Nf1 {[%emt 0:09:12]} Kh8 {[%emt 0:04:29]} 28. Ng3 {[%emt 0:02:50]} Bg6 {[%emt 0:01:01]} 29. Nf1 {[%emt 0:01:24]} Bf7 {[%emt 0:00:17]} 30. Bc1 {[%emt 0:00:47]} Kh7 {[%emt 0:01:46]} 31. Bd2 {[%emt 0:02:42]} Qc7 {[%emt 0:01:29]} 32. Be3 {[%emt 0:00:43]} Qa5 {[%emt 0:03:21]} 33. Qe1 {[%emt 0:03:22]} Qc7 {[%emt 0:02:30]} 34. Bf2 {[%emt 0:02:07]} Kh8 {[%emt 0:01:13]} 35. a3 {[%emt 0:01:14]} Rb8 {[%emt 0:00:53]} 36. Rb1 {[%emt 0:00:50]} Bg6 {[%emt 0:00:47]} 37. b4 {[%emt 0:01:31]} cxb4 {[%emt 0:00:36]} 38. axb4 {[%emt 0:00:16]} Rfe8 {[%emt 0:01:54]} 39. c5 {[%emt 0:00:51]} Be7 {[%emt 0:01:32]} 40. Nd2 {[%emt 0:01:13]} Bf6 {[%emt 0:00:51]} 41. Nc4 {[%emt 0:00:27]} Rb5 {[%emt 0:00:54]} 42. Nd6 {[%emt 0:00:07]} Reb8 {[%emt 0:00:26]} 43. Nxb5 {[%emt 0:00:24]} axb5 {[%emt 0:00:20]} 44. Nb6 {[%emt 0:00:30]} f4 {[%emt 0:00:40]} 45. Qd1 {[%emt 0:01:01]} Nxb6 {[%emt 0:00:24]} 46. cxb6 {[%emt 0:00:07]} Qd6 {[%emt 0:00:07]} 47. Rd2 {[%emt 0:00:53]} Bd8 {[%emt 0:00:25]} 48. Rb3 {[%emt 0:01:40]} Bxb6 {[%emt 0:00:38]} 49. Bxb6 {[%emt 0:00:11]} Rxb6 {[%emt 0:00:03]} 50. d4 {[%emt 0:00:21]} e4 {[%emt 0:00:39]} 51. fxe4 {[%emt 0:00:30]} Bxe4 {[%emt 0:00:09]} 52. Re2 {[%emt 0:00:51]} Qd5 {[%emt 0:00:22]} 53. Ra3 {[%emt 0:00:52]} Rb8 {[%emt 0:01:25]} 54. Kh2 {[%emt 0:01:32]} f3 {[%emt 0:00:50]} 55. gxf3 {[%emt 0:00:34]} Qd6+ {[%emt 0:00:34]} 56. Kg1 {[%emt 0:00:22]} Bf5 {[%emt 0:00:25]} 57. Rh2 {[%emt 0:00:36]} Re8 {[%emt 0:00:25]} 58. Qd2 {[%emt 0:00:28]} Qg3+ {[%emt 0:00:21]} 59. Kf1 {[%emt 0:00:35]} Bxh3+ {[%emt 0:00:40]} 60. Rxh3 {[%emt 0:00:26]} Qxh3+ {[%emt 0:00:02]} 61. Kg1 {[%emt 0:00:13]} Qg3+ {[%emt 0:00:23]} 62. Kf1 {[%emt 0:00:05]} Qh3+ {[%emt 0:00:56]} 63. Kg1 {[%emt 0:00:04]} Qg3+ {[%emt 0:00:37]} 64. Kf1 {[%emt 0:00:05]} h5 {[%emt 0:00:28]} 65. Re3 {[%emt 0:00:54]} Rf8 {[%emt 0:00:27]} 66. Qf2 {[%emt 0:00:29]} Qxf2+ {[%emt 0:00:39]} 67. Kxf2 {[%emt 0:00:05]} Rf4 {[%emt 0:00:13]} 68. Rd3 {[%emt 0:00:54]} g5 {[%emt 0:00:28]} 69. Ke3 {[%emt 0:00:39]} h4 {[%emt 0:00:52]} 70. Rc3 {[%emt 0:00:05]} Rf6 {[%emt 0:00:31]} 71. Rc5 {[%emt 0:00:04]} Rg6 {[%emt 0:00:05]} 72. d5 {[%emt 0:00:28]} cxd5 {[%emt 0:00:35]} 73. Rxd5 {[%emt 0:00:05]} h3 {[%emt 0:00:11]} 74. Kf2 {[%emt 0:00:11]} Kg7 {[%emt 0:01:13]} 75. Kg3 {[%emt 0:00:32]} Rh6 {[%emt 0:00:28]} 76. Kh2 {[%emt 0:01:14]} Kf6 {[%emt 0:00:30]} 77. Rxb5 {[%emt 0:00:31]} Rh4 {[%emt 0:00:09]} 78. Rb8 {[%emt 0:01:11]} Ke6 {[%emt 0:00:41]} 79. b5 {[%emt 0:00:31]} Rf4 {[%emt 0:00:40]} 80. Kxh3 {[%emt 0:01:37]} Rxf3+ {[%emt 0:00:21]} 81. Kg4 {[%emt 0:00:04]} Rb3 {[%emt 0:00:27]} 82. Kxg5 {[%emt 0:00:15]} Kd6 {[%emt 0:00:16]} 83. b6 {[%emt 0:00:27]} Kc6 {[%emt 0:00:24]} 84. Rc8+ {[%emt 0:00:31]} Kb7 {[%emt 0:00:19]} 1/2-1/2

[Event "POL-chT 2nd League Juniors 2020"]
[Site "Sypniewo"]
[Date "2020.10.29"]
[Round "8.3"]
[White "Karut, Kacper"]
[Black "Skrzypinski, Jan"]
[Result "1-0"]
[ECO "B32"]
[WhiteElo "1657"]
[BlackElo "1418"]
[Annotator "NA RC"]
[PlyCount "95"]
[EventDate "2020.10.23"]
[EventType "team-tourn"]
[EventCountry "POL"]
[SourceTitle "playchess.com"]
[Source "ChessBase"]
[SourceQuality "1"]
[TimeControl "5400+30"]

1. e4 {[%emt 0:00:00]} c5 {[%emt 0:00:00]} 2. Nf3 {[%emt 0:00:00]} Nc6 {[%emt 0:00:00]} 3. d4 {[%emt 0:00:00]} cxd4 {[%emt 0:00:04]} 4. Nxd4 {[%emt 0:00:00]} e5 {[%emt 0:00:07]} 5. Nb5 {[%emt 0:03:29]} a6 {[%emt 0:00:10]} 6. Nd6+ {[%emt 0:00:18]} Bxd6 {[%emt 0:00:07]} 7. Qxd6 {[%emt 0:00:29]} Qe7 {[%emt 0:00:56]} 8. Qxe7+ {[%emt 0:05:44]} Ngxe7 {[%emt 0:00:13]} 9. c4 {[%emt 0:14:11]} Nd4 10. Bd3 {[%emt 0:02:20]} d6 {[%emt 0:01:32]} 11. Nc3 {[%emt 0:03:06]} O-O {[%emt 0:02:38]} 12. Nd5 {[%emt 0:11:42]} Nxd5 {[%emt 0:01:19]} 13. cxd5 {[%emt 0:01:25]} f5 {[%emt 0:04:37]} 14. f3 {[%emt 0:05:12]} fxe4 {[%emt 0:07:05]} 15. fxe4 {[%emt 0:01:22]} Bd7 {[%emt 0:00:27]} 16. Be3 {[%emt 0:02:09]} Bb5 {[%emt 0:03:25]} 17. Kd2 {[%emt 0:02:48]} Bxd3 {[%emt 0:00:20]} 18. Kxd3 {[%emt 0:00:38]} Rf6 {[%emt 0:19:06]} 19. Rhf1 {[%emt 0:07:39]} Raf8 {[%emt 0:03:09]} 20. Rxf6 {[%emt 0:02:50]} Rxf6 {[%emt 0:00:06]} 21. Rc1 {[%emt 0:01:24]} Rg6 {[%emt 0:00:38]} 22. Bxd4 {[%emt 0:02:51]} exd4 {[%emt 0:02:18]} 23. Rc2 {[%emt 0:00:31]} Kf8 {[%emt 0:01:01]} 24. Kxd4 {[%emt 0:00:14]} Ke8 {[%emt 0:00:09]} 25. Rf2 {[%emt 0:02:20]} Ke7 {[%emt 0:00:41]} 26. h3 {[%emt 0:02:18]} Rg5 {[%emt 0:01:40]} 27. g4 {[%emt 0:02:41]} g6 {[%emt 0:02:56]} 28. Rf4 {[%emt 0:06:09]} h5 {[%emt 0:02:12]} 29. h4 {[%emt 0:02:58]} Rxg4 {[%emt 0:05:29]} 30. Rxg4 {[%emt 0:00:04]} hxg4 {[%emt 0:00:06]} 31. Ke3 {[%emt 0:00:04]} Kf6 {[%emt 0:00:31]} 32. Kf4 {[%emt 0:00:05]} a5 {[%emt 0:02:18]} 33. Kxg4 {[%emt 0:01:28]} b5 {[%emt 0:00:42]} 34. Kf4 {[%emt 0:00:08]} b4 {[%emt 0:00:17]} 35. b3 {[%emt 0:00:04]} Kf7 {[%emt 0:00:19]} 36. e5 {[%emt 0:00:36]} dxe5+ {[%emt 0:00:10]} 37. Kxe5 {[%emt 0:00:04]} Ke7 {[%emt 0:00:02]} 38. d6+ {[%emt 0:00:19]} Kd7 {[%emt 0:00:03]} 39. Kd5 {[%emt 0:00:08]} Kd8 {[%emt 0:00:04]} 40. Ke6 {[%emt 0:00:10]} Ke8 {[%emt 0:00:03]} 41. d7+ {[%emt 0:00:06]} Kd8 {[%emt 0:00:05]} 42. Kd6 {[%emt 0:00:06]} a4 {[%emt 0:00:20]} 43. bxa4 {[%emt 0:00:31]} b3 {[%emt 0:00:14]} 44. axb3 {[%emt 0:00:04]} g5 {[%emt 0:00:05]} 45. h5 {[%emt 0:00:05]} g4 {[%emt 0:00:02]} 46. h6 {[%emt 0:00:04]} g3 {[%emt 0:00:03]} 47. h7 {[%emt 0:00:03]} g2 {[%emt 0:00:03]} 48. h8=R# {[%emt 0:00:09]} 1-0

[Event "POL-chT 2nd League Juniors 2020"]
[Site "Sypniewo"]
[Date "2020.10.29"]
[Round "8.3"]
[White "Bochenek, Ryszard"]
[Black "Cieply, Krzysztof"]
[Result "0-1"]
[ECO "B56"]
[WhiteElo "1445"]
[BlackElo "1573"]
[Annotator "NA RC"]
[PlyCount "118"]
[EventDate "2020.10.23"]
[EventType "team-tourn"]
[EventCountry "POL"]
[SourceTitle "playchess.com"]
[Source "ChessBase"]
[SourceQuality "1"]
[TimeControl "5400+30"]

1. e4 {[%emt 0:00:00]} c5 {[%emt 0:00:00]} 2. Nf3 {[%emt 0:00:00]} Nc6 {[%emt 0:00:00]} 3. d4 {[%emt 0:00:10]} cxd4 {[%emt 0:00:07]} 4. Nxd4 {[%emt 0:00:05]} Nf6 {[%emt 0:00:11]} 5. Nc3 {[%emt 0:00:32]} d6 {[%emt 0:00:11]} 6. Be3 {[%emt 0:01:53]} e5 {[%emt 0:00:12]} 7. Ndb5 {[%emt 0:02:38]} a6 {[%emt 0:01:44]} 8. Na3 {[%emt 0:00:20]} b5 {[%emt 0:02:48]} 9. Nd5 {[%emt 0:08:40]} Nxd5 {[%emt 0:00:23]} 10. Qxd5 Bd7 11. Be2 {[%emt 0:08:51]} Be7 {[%emt 0:03:17]} 12. O-O {[%emt 0:01:57]} O-O {[%emt 0:00:13]} 13. f4 {[%emt 0:02:45]} exf4 {[%emt 0:01:53]} 14. Bxf4 {[%emt 0:05:03]} Qb6+ {[%emt 0:00:15]} 15. Kh1 {[%emt 0:01:27]} Be6 {[%emt 0:00:10]} 16. Qd2 {[%emt 0:03:03]} Ne5 {[%emt 0:00:16]} 17. c3 {[%emt 0:05:51]} Ng6 {[%emt 0:08:07]} 18. Be3 {[%emt 0:11:58]} Qb7 {[%emt 0:01:05]} 19. Bd4 {[%emt 0:06:17]} f6 {[%emt 0:13:01]} 20. Rae1 {[%emt 0:06:22]} d5 {[%emt 0:03:46]} 21. Bd3 {[%emt 0:07:19]} Bxa3 {[%emt 0:08:52]} 22. bxa3 {[%emt 0:00:08]} dxe4 {[%emt 0:01:44]} 23. Bxe4 {[%emt 0:00:12]} Bd5 {[%emt 0:00:15]} 24. Qc2 {[%emt 0:01:21]} Bxe4 {[%emt 0:00:15]} 25. Qxe4 {[%emt 0:00:15]} Qxe4 {[%emt 0:00:30]} 26. Rxe4 {[%emt 0:00:05]} Rfe8 {[%emt 0:00:13]} 27. Rfe1 {[%emt 0:00:45]} Rxe4 {[%emt 0:03:10]} 28. Rxe4 {[%emt 0:00:06]} Kf7 {[%emt 0:00:06]} 29. Kg1 {[%emt 0:01:21]} Rc8 {[%emt 0:01:11]} 30. Kf2 {[%emt 0:05:16]} Rc4 {[%emt 0:01:12]} 31. Re3 {[%emt 0:01:15]} Ne7 {[%emt 0:05:31]} 32. Rd3 {[%emt 0:05:04]} Nd5 {[%emt 0:06:34]} 33. Kf3 {[%emt 0:01:26]} Ke6 {[%emt 0:01:13]} 34. g3 {[%emt 0:02:06]} g6 {[%emt 0:04:55]} 35. Ke2 {[%emt 0:00:53]} f5 {[%emt 0:00:39]} 36. Kd2 {[%emt 0:01:43]} g5 {[%emt 0:02:12]} 37. h3 {[%emt 0:01:21]} Ra4 {[%emt 0:04:48]} 38. Bc5 {[%emt 0:00:49]} Re4 {[%emt 0:00:11]} 39. Bf8 {[%emt 0:01:41]} h5 {[%emt 0:04:26]} 40. Bh6 {[%emt 0:01:11]} g4 {[%emt 0:02:06]} 41. h4 {[%emt 0:00:15]} Rc4 {[%emt 0:06:03]} 42. Bg7 {[%emt 0:02:06]} f4 {[%emt 0:00:23]} 43. gxf4 {[%emt 0:00:36]} Rxf4 {[%emt 0:00:10]} 44. Bd4 {[%emt 0:00:36]} Rf1 {[%emt 0:00:49]} 45. a4 Ra1 {[%emt 0:00:39]} 46. a3 {[%emt 0:01:36]} Rxa3 {[%emt 0:00:30]} 47. axb5 {[%emt 0:00:04]} axb5 {[%emt 0:00:05]} 48. Ke1 {[%emt 0:03:38]} b4 {[%emt 0:01:26]} 49. Rd2 {[%emt 0:01:53]} Nxc3 {[%emt 0:02:55]} 50. Bxc3 {[%emt 0:01:20]} Rxc3 {[%emt 0:00:34]} 51. Rd4 {[%emt 0:00:19]} b3 {[%emt 0:00:30]} 52. Rb4 {[%emt 0:00:04]} g3 {[%emt 0:05:21]} 53. Kf1 {[%emt 0:00:54]} Kf5 {[%emt 0:01:02]} 54. Kg1 {[%emt 0:00:26]} b2 {[%emt 0:01:28]} 55. Rxb2 {[%emt 0:00:08]} Kg4 {[%emt 0:00:05]} 56. Kg2 {[%emt 0:00:56]} Rc4 {[%emt 0:00:05]} 57. Rd2 {[%emt 0:00:41]} Kxh4 {[%emt 0:00:09]} 58. Kf3 {[%emt 0:00:03]} Kh3 {[%emt 0:01:03]} 59. Rd5 {[%emt 0:00:30]} h4 {[%emt 0:00:06]} 0-1

[Event "POL-chT 2nd League Juniors 2020"]
[Site "Sypniewo"]
[Date "2020.10.29"]
[Round "8.4"]
[White "Wojs, Alicja"]
[Black "Suszczynski, Dominik"]
[Result "1-0"]
[ECO "B50"]
[WhiteElo "1392"]
[BlackElo "1241"]
[Annotator "NA RC"]
[PlyCount "79"]
[EventDate "2020.10.23"]
[EventType "team-tourn"]
[EventCountry "POL"]
[SourceTitle "playchess.com"]
[Source "ChessBase"]
[SourceQuality "1"]
[TimeControl "5400+30"]

1. e4 {[%emt 0:00:00]} c5 {[%emt 0:00:00]} 2. Nf3 {[%emt 0:00:03]} d6 {[%emt 0:00:29]} 3. c3 {[%emt 0:01:47]} Nf6 {[%emt 0:01:06]} 4. h3 {[%emt 0:00:37]} Nbd7 {[%emt 0:04:20]} 5. Bd3 {[%emt 0:00:48]} Qc7 {[%emt 0:01:34]} 6. Bc2 {[%emt 0:01:07]} b6 {[%emt 0:02:34]} 7. O-O {[%emt 0:03:46]} Bb7 {[%emt 0:02:01]} 8. Re1 {[%emt 0:01:01]} e6 {[%emt 0:05:35]} 9. d4 {[%emt 0:00:30]} cxd4 {[%emt 0:00:30]} 10. cxd4 {[%emt 0:00:30]} Be7 {[%emt 0:00:30]} 11. Nc3 {[%emt 0:03:41]} Rc8 {[%emt 0:04:36]} 12. Bf4 {[%emt 0:02:31]} e5 {[%emt 0:05:49]} 13. Bg3 {[%emt 0:01:51]} O-O {[%emt 0:02:05]} 14. Rc1 {[%emt 0:01:22]} a6 {[%emt 0:00:59]} 15. Nd5 {[%emt 0:00:52]} Nxd5 {[%emt 0:00:29]} 16. exd5 {[%emt 0:00:10]} f6 {[%emt 0:02:09]} 17. Bxh7+ {[%emt 0:00:14]} Kxh7 {[%emt 0:00:24]} 18. Rxc7 {[%emt 0:00:06]} Rxc7 {[%emt 0:00:08]} 19. Nh4 {[%emt 0:00:40]} Rfc8 {[%emt 0:01:23]} 20. dxe5 {[%emt 0:01:01]} fxe5 {[%emt 0:00:09]} 21. Nf5 {[%emt 0:00:49]} Bf8 {[%emt 0:00:47]} 22. Qh5+ {[%emt 0:00:48]} Kg8 {[%emt 0:00:10]} 23. Qg6 {[%emt 0:00:38]} Nf6 {[%emt 0:02:10]} 24. Bh4 {[%emt 0:00:31]} Ne8 {[%emt 0:00:44]} 25. Qe6+ {[%emt 0:01:37]} Kh8 {[%emt 0:00:48]} 26. Be7 {[%emt 0:01:08]} Bxd5 {[%emt 0:01:27]} 27. Qxd5 {[%emt 0:01:09]} Bxe7 {[%emt 0:00:08]} 28. Qf7 {[%emt 0:00:27]} Bf6 {[%emt 0:01:05]} 29. Qh5+ {[%emt 0:00:28]} Kg8 {[%emt 0:00:02]} 30. Rd1 {[%emt 0:00:59]} Rd8 {[%emt 0:01:29]} 31. g4 {[%emt 0:02:39]} g5 {[%emt 0:02:35]} 32. Qg6+ {[%emt 0:03:34]} Kf8 {[%emt 0:01:12]} 33. Ng3 {[%emt 0:00:48]} Rg7 {[%emt 0:01:25]} 34. Qf5 {[%emt 0:00:26]} Rf7 {[%emt 0:00:57]} 35. Ne4 {[%emt 0:01:40]} Be7 {[%emt 0:00:34]} 36. Qe6 {[%emt 0:01:20]} Rf4 {[%emt 0:03:11]} 37. Qh6+ {[%emt 0:00:56]} Kg8 {[%emt 0:01:05]} 38. Nxg5 {[%emt 0:00:25]} Ng7 {[%emt 0:00:45]} 39. Qh7+ {[%emt 0:00:09]} Kf8 {[%emt 0:00:05]} 40. Qh8# {[%emt 0:00:05]} 1-0

[Event "POL-chT 2nd League Juniors 2020"]
[Site "Sypniewo"]
[Date "2020.10.29"]
[Round "8.4"]
[White "Kaczmarek, Jan"]
[Black "Pycinski, Wladyslaw"]
[Result "1/2-1/2"]
[ECO "B27"]
[WhiteElo "1229"]
[BlackElo "1149"]
[Annotator "NA RC"]
[PlyCount "212"]
[EventDate "2020.10.23"]
[EventType "team-tourn"]
[EventCountry "POL"]
[SourceTitle "playchess.com"]
[Source "ChessBase"]
[SourceQuality "1"]
[TimeControl "5400+30"]

1. e4 c5 {[%emt 0:01:38]} 2. Nf3 {[%emt 0:00:00]} g6 {[%emt 0:01:14]} 3. d4 {[%emt 0:00:00]} cxd4 {[%emt 0:00:07]} 4. Qxd4 {[%emt 0:00:15]} Nf6 {[%emt 0:00:21]} 5. e5 {[%emt 0:00:59]} Nc6 {[%emt 0:00:24]} 6. Qa4 {[%emt 0:00:52]} Nd5 {[%emt 0:00:52]} 7. Bb5 {[%emt 0:00:53]} Bg7 {[%emt 0:03:44]} 8. O-O {[%emt 0:02:39]} O-O {[%emt 0:06:36]} 9. Qh4 Qc7 {[%emt 0:15:13]} 10. Bxc6 {[%emt 0:10:48]} dxc6 {[%emt 0:09:56]} 11. Bh6 {[%emt 0:11:42]} f6 {[%emt 0:07:47]} 12. Re1 {[%emt 0:16:48]} g5 {[%emt 0:06:21]} 13. Nxg5 {[%emt 0:10:45]} fxg5 {[%emt 0:01:00]} 14. Qxg5 {[%emt 0:01:59]} e6 {[%emt 0:00:14]} 15. Re4 {[%emt 0:05:54]} Qf7 {[%emt 0:04:28]} 16. Nd2 {[%emt 0:08:56]} Qg6 {[%emt 0:01:39]} 17. Rg4 {[%emt 0:05:45]} Qxg5 {[%emt 0:03:03]} 18. Rxg5 {[%emt 0:00:01]} Rf7 {[%emt 0:00:11]} 19. Ne4 {[%emt 0:01:44]} Kh8 {[%emt 0:05:36]} 20. Nd6 {[%emt 0:02:57]} Re7 {[%emt 0:00:45]} 21. Bxg7+ {[%emt 0:01:23]} Rxg7 {[%emt 0:00:24]} 22. Rxg7 {[%emt 0:00:03]} Kxg7 {[%emt 0:00:08]} 23. c3 {[%emt 0:02:53]} b6 {[%emt 0:09:28]} 24. Rd1 {[%emt 0:03:36]} Ba6 {[%emt 0:01:35]} 25. g3 {[%emt 0:00:56]} b5 {[%emt 0:05:43]} 26. Rd4 {[%emt 0:00:47]} h5 {[%emt 0:03:09]} 27. f3 {[%emt 0:01:49]} Kf8 {[%emt 0:04:26]} 28. Rh4 {[%emt 0:00:42]} Kg7 {[%emt 0:00:28]} 29. Rxh5 {[%emt 0:00:20]} Kg6 {[%emt 0:00:11]} 30. Rh4 {[%emt 0:00:43]} Ne3 {[%emt 0:00:20]} 31. Re4 {[%emt 0:00:45]} Nd5 {[%emt 0:01:50]} 32. Kf2 {[%emt 0:00:41]} Rf8 {[%emt 0:00:25]} 33. Rg4+ {[%emt 0:00:50]} Kh7 {[%emt 0:00:21]} 34. h4 {[%emt 0:00:41]} Bc8 {[%emt 0:00:23]} 35. h5 {[%emt 0:00:38]} Bd7 {[%emt 0:00:10]} 36. Rh4 {[%emt 0:00:16]} Kh6 {[%emt 0:00:17]} 37. c4 {[%emt 0:00:31]} Ne7 {[%emt 0:00:43]} 38. cxb5 {[%emt 0:00:37]} cxb5 {[%emt 0:00:05]} 39. Rh1 {[%emt 0:00:18]} Bc6 {[%emt 0:00:31]} 40. Rc1 {[%emt 0:01:09]} Rxf3+ {[%emt 0:00:13]} 41. Ke2 {[%emt 0:00:47]} Rxg3 {[%emt 0:00:14]} 42. Nc8 {[%emt 0:00:44]} Rg2+ {[%emt 0:01:12]} 43. Kd3 {[%emt 0:01:04]} Nxc8 {[%emt 0:01:39]} 44. Rxc6 {[%emt 0:00:04]} Nb6 45. Rxe6+ {[%emt 0:00:20]} Kxh5 {[%emt 0:00:14]} 46. Re7 {[%emt 0:00:31]} Rg5 {[%emt 0:00:31]} 47. e6 {[%emt 0:00:40]} Re5 {[%emt 0:00:14]} 48. Rxa7 {[%emt 0:00:38]} Rxe6 {[%emt 0:00:07]} 49. b3 {[%emt 0:00:34]} Rd6+ {[%emt 0:00:54]} 50. Ke4 {[%emt 0:00:27]} Nd7 {[%emt 0:00:46]} 51. a4 {[%emt 0:00:48]} Nc5+ {[%emt 0:00:30]} 52. Ke5 {[%emt 0:00:29]} Rd3 {[%emt 0:00:23]} 53. axb5 {[%emt 0:00:23]} Rxb3 {[%emt 0:00:11]} 54. Kd4 {[%emt 0:00:35]} Rxb5 {[%emt 0:01:18]} 55. Rh7+ {[%emt 0:00:12]} Kg6 {[%emt 0:00:11]} 56. Rh1 {[%emt 0:00:03]} Ne6+ {[%emt 0:00:06]} 57. Ke4 {[%emt 0:00:21]} Ng5+ {[%emt 0:00:09]} 58. Kd4 {[%emt 0:00:19]} Kf6 {[%emt 0:00:12]} 59. Rh6+ {[%emt 0:00:13]} Kf5 {[%emt 0:00:06]} 60. Kc4 {[%emt 0:00:21]} Rb1 {[%emt 0:00:18]} 61. Rh8 {[%emt 0:00:41]} Ke5 {[%emt 0:00:24]} 62. Rh5 {[%emt 0:00:12]} Kf4 {[%emt 0:00:10]} 63. Rh4+ {[%emt 0:00:09]} Ke3 {[%emt 0:00:07]} 64. Rh5 {[%emt 0:00:38]} Nf3 {[%emt 0:00:09]} 65. Rh8 {[%emt 0:00:43]} Ke4 {[%emt 0:00:10]} 66. Re8+ {[%emt 0:00:09]} Ne5+ {[%emt 0:00:04]} 67. Kc3 {[%emt 0:00:28]} Rd1 {[%emt 0:00:08]} 68. Kb4 {[%emt 0:00:20]} Rc1 {[%emt 0:00:08]} 69. Kb5 {[%emt 0:00:13]} Kd5 {[%emt 0:00:16]} 70. Rd8+ {[%emt 0:00:11]} Ke6 {[%emt 0:00:07]} 71. Rh8 {[%emt 0:00:38]} Kd7 {[%emt 0:00:18]} 72. Rh7+ {[%emt 0:00:11]} Kd6 {[%emt 0:00:06]} 73. Rh6+ {[%emt 0:00:22]} Kd5 {[%emt 0:00:05]} 74. Rh5 {[%emt 0:00:30]} Rb1+ {[%emt 0:00:08]} 75. Ka5 {[%emt 0:00:18]} Kd4 {[%emt 0:00:19]} 76. Rh4+ {[%emt 0:00:42]} Kc5 {[%emt 0:00:16]} 77. Ka4 {[%emt 0:00:16]} Nf3 {[%emt 0:00:17]} 78. Rh5+ {[%emt 0:00:17]} Kc4 {[%emt 0:00:07]} 79. Ka5 {[%emt 0:00:27]} Nd4 {[%emt 0:00:13]} 80. Rh4 {[%emt 0:00:23]} Kc5 {[%emt 0:00:27]} 81. Rh5+ {[%emt 0:00:10]} Kd6 {[%emt 0:00:22]} 82. Rh6+ {[%emt 0:00:10]} Ne6 {[%emt 0:00:08]} 83. Ka4 {[%emt 0:00:23]} Ke5 {[%emt 0:00:24]} 84. Rh5+ {[%emt 0:00:14]} Ke4 {[%emt 0:00:09]} 85. Rh4+ {[%emt 0:00:02]} Nf4 {[%emt 0:00:05]} 86. Ka5 {[%emt 0:00:19]} Kf5 {[%emt 0:00:22]} 87. Rh8 {[%emt 0:00:21]} Ke5 {[%emt 0:00:06]} 88. Re8+ {[%emt 0:00:09]} Ne6 {[%emt 0:00:05]} 89. Rh8 {[%emt 0:00:42]} Nc7 {[%emt 0:00:34]} 90. Rh5+ {[%emt 0:00:07]} Kd4 {[%emt 0:00:09]} 91. Rh4+ {[%emt 0:00:20]} Kc5 {[%emt 0:00:05]} 92. Rh5+ {[%emt 0:00:12]} Nd5 {[%emt 0:00:07]} 93. Ka4 {[%emt 0:00:17]} Kc6 {[%emt 0:00:20]} 94. Rh6+ {[%emt 0:00:11]} Kb7 {[%emt 0:00:17]} 95. Rh7+ {[%emt 0:00:05]} Ka6 {[%emt 0:00:22]} 96. Rh6+ {[%emt 0:00:29]} Nb6+ {[%emt 0:00:06]} 97. Ka3 {[%emt 0:00:06]} Kb5 {[%emt 0:00:18]} 98. Rh5+ {[%emt 0:00:06]} Kc4 {[%emt 0:00:23]} 99. Rh4+ {[%emt 0:00:18]} Kc5 {[%emt 0:00:05]} 100. Rh5+ {[%emt 0:00:16]} Nd5 {[%emt 0:00:06]} 101. Ka2 {[%emt 0:01:01]} Rb8 {[%emt 0:00:16]} 102. Ka3 {[%emt 0:00:19]} Kc4 {[%emt 0:00:45]} 103. Rh4+ {[%emt 0:00:14]} Kd3 {[%emt 0:00:09]} 104. Rh3+ {[%emt 0:00:14]} Ne3 {[%emt 0:00:04]} 105. Ka4 {[%emt 0:00:06]} Kc4 {[%emt 0:00:46]} 106. Rh4+ {[%emt 0:00:07]} Kc5 {[%emt 0:00:13]} 1/2-1/2